bitfinex/quotes_ETHUSD_20220308
["timestamp","ask_amount","ask_price","bid_price","bid_amount"]
[1646706217539,0.46771285,2534.2,2534.1,0.98691]
[1646706218138,0.71421362,2534.4,2534.2,1.97382]
[1646706218340,0.00504758,2534.3,2534.2,1.97382]
[1646706218541,0.47284124,2534.3,2534.2,1.97382]
[1646706219040,0.47284124,2534.3,2534.0,0.98691]
[1646706219343,0.46779366,2534.2,2533.8,2.6618484]
[1646706219640,0.46779366,2534.1,2533.8,2.6618484]
[1646706219840,0.46779366,2534.0,2533.8,2.6618484]
[1646706220040,0.46779366,2533.9,2533.8,2.6618484]
[1646706220441,0.71421362,2534.4,2533.8,3.79150726]
[1646706220642,0.00504733,2534.3,2533.8,2.6618484]
[1646706220888,0.46779366,2534.2,2533.8,2.6618484]
[1646706221092,0.46779366,2534.2,2533.9,0.98701]
[1646706221690,0.46779366,2534.1,2533.9,0.98701]
[1646706221893,0.46779366,2534.0,2533.9,0.98701]
[1646706222091,0.46779366,2534.2,2533.9,0.98701]
[1646706222690,1.39199946,2534.2,2533.9,1.97398]
[1646706222892,1.39199946,2534.2,2533.9,0.98701]
[1646706222893,0.46779366,2534.1,2533.9,0.98701]
[1646706224094,0.46779366,2534.1,2533.8,0.6877184]
[1646706224297,1.18200728,2534.1,2533.8,0.6877184]
[1646706224737,0.71421362,2534.0,2533.8,0.6877184]
[1646706225238,0.46779366,2533.9,2533.8,0.6877184]
[1646706225639,0.46779366,2534.1,2533.8,0.6877184]
[1646706225842,0.46779366,2534.0,2533.8,1.6748584]
[1646706226042,1.00504739,2534.3,2533.8,1.6748584]
[1646706226043,0.46779366,2533.9,2533.8,1.6748584]
[1646706226443,0.71421362,2534.3,2533.8,2.80501311]
[1646706226645,0.46779366,2533.9,2533.8,2.80501311]
[1646706226844,0.71926095,2534.3,2533.8,2.805095]
[1646706227046,0.71926095,2534.3,2533.9,1.04270736]
[1646706227244,0.71926095,2534.3,2533.9,2.02976736]
[1646706227647,0.71421362,2534.3,2533.9,2.02976736]
[1646706227846,1.18705487,2534.3,2533.9,2.02976736]
[1646706228046,0.46779366,2534.2,2533.9,2.02976736]
[1646706228487,0.46779366,2534.1,2533.9,2.02976736]
[1646706228688,0.46779366,2534.0,2533.9,1.04270736]
[1646706228988,0.46779366,2534.0,2533.9,2.02978736]
[1646706229288,0.46779366,2534.0,2533.9,1.04270736]
[1646706229489,0.71926116,2534.3,2533.9,2.17429711]
[1646706229690,0.71926116,2534.3,2533.9,1.04270736]
[1646706229887,0.71421362,2534.3,2533.9,1.04270736]
[1646706230089,0.71421362,2534.3,2533.8,1.6748584]
[1646706230290,0.71421362,2534.3,2533.9,1.13311958]
[1646706230291,1.18200728,2534.2,2533.9,1.13311958]
[1646706230493,1.18200728,2534.1,2533.9,1.13311958]
[1646706230691,0.46779366,2534.0,2533.8,1.6748584]
[1646706230895,0.46779366,2533.9,2533.8,1.6748584]
[1646706231095,0.46779366,2533.9,2533.8,2.80809863]
[1646706232243,0.71421362,2534.1,2533.8,2.80809863]
[1646706232442,0.71421362,2534.1,2533.9,1.13324023]
[1646706232643,1.18200728,2534.1,2533.8,1.6748584]
[1646706232843,0.46779366,2534.0,2533.8,1.6748584]
[1646706233044,3.08568335,2534.3,2533.9,1.13311238]
[1646706233045,0.71421362,2534.2,2533.9,1.13311238]
[1646706233343,1.00504728,2534.3,2533.9,1.13311238]
[1646706233344,1.18325097,2534.1,2533.9,1.13311238]
[1646706233543,0.46903735,2534.0,2533.9,1.13311238]
[1646706233945,0.71421362,2534.2,2533.9,1.13311238]
[1646706234144,0.71421362,2534.2,2533.9,2.12015238]
[1646706234346,0.71421362,2534.2,2534.0,1.13311238]
[1646706235344,0.71421362,2534.2,2533.9,0.98704]
[1646706235545,0.71421362,2534.1,2533.8,1.9748584]
[1646706235806,0.71421362,2534.1,2533.2,0.00504964]
[1646706235807,5.45228482,2534.0,2533.2,0.00504964]
[1646706236009,0.72348071,2533.6,2533.3,1.10699202]
[1646706236209,0.72348071,2533.6,2533.1,2.8861]
[1646706236210,0.004333,2533.3,2533.1,2.8861]
[1646706236407,0.004333,2533.3,2533.2,1.11217413]
[1646706236607,0.50112179,2533.3,2533.2,1.11217413]
[1646706236810,1.40782364,2533.3,2533.2,1.11217413]
[1646706237207,1.40782364,2533.3,2533.2,1.10712449]
[1646706237411,1.40782364,2533.3,2533.1,0.00504877]
[1646706237708,1.40782364,2533.3,2532.7,0.15809]
[1646706237709,0.68162422,2532.9,2532.7,0.15809]
[1646706237910,0.68162422,2532.9,2532.8,1.1063285]
[1646706238109,1.17800712,2532.9,2532.8,1.1063285]
[1646706238308,1.17800712,2532.9,2532.7,1.1063285]
[1646706238507,0.68162422,2532.9,2532.8,1.1063285]
[1646706238707,1.17812805,2532.9,2532.8,1.1063285]
[1646706238908,1.17812805,2532.9,2532.7,1.1063285]
[1646706239108,0.68162422,2532.9,2532.8,1.1063285]
[1646706239410,1.17770474,2532.9,2532.8,1.1063285]
[1646706239649,1.17770474,2532.9,2532.7,1.1063285]
[1646706239851,0.68162422,2532.9,2532.8,1.1063285]
[1646706240051,1.17769625,2532.9,2532.8,1.1063285]
[1646706241855,1.17769625,2532.9,2532.8,2.29409546]
[1646706242453,0.68162422,2532.9,2532.8,2.29409546]
[1646706242657,1.18935654,2532.9,2532.8,2.29409546]
[1646706242854,1.18935654,2532.9,2532.8,1.1063285]
[1646706244288,1.65935363,2532.9,2532.8,1.1063285]
[1646706244489,0.68162422,2532.9,2532.8,1.1063285]
[1646706247360,0.68162422,2532.9,2532.8,2.31506051]
[1646706247552,0.68162422,2532.9,2532.8,5.81506051]
[1646706247752,0.68162422,2532.9,2532.8,6.11506051]
[1646706247956,0.004333,2533.5,2532.9,5.48717]
[1646706248153,0.49445457,2533.4,2533.0,5.5934985]
[1646706248353,0.004333,2533.8,2533.1,1.1063285]
[1646706248553,0.5063401,2533.7,2533.2,1.1063285]
[1646706248753,0.5063401,2533.7,2533.3,1.1063285]
[1646706248956,0.5063401,2533.7,2533.4,1.1063285]
[1646706249158,0.5063401,2533.7,2533.5,1.1063285]
[1646706249355,0.5063401,2533.7,2533.4,0.3]
[1646706249654,0.5063401,2533.7,2533.5,1.09208122]
[1646706249854,0.5063401,2533.7,2533.5,0.98719]
[1646706250055,0.5063401,2533.7,2533.6,4.59190929]
[1646706251092,0.5063401,2533.7,2533.6,5.77580854]
[1646706251295,0.5063401,2533.7,2533.6,5.77147554]
[1646706251694,0.5063401,2533.9,2533.6,7.74556554]
[1646706251916,0.72348071,2534.3,2533.7,1.09166253]
[1646706251917,0.5063401,2533.8,2533.7,1.09166253]
[1646706252096,0.5063401,2533.8,2533.7,6.56572023]
[1646706253197,0.00504787,2534.0,2533.7,6.56572023]
[1646706253393,0.5063401,2533.9,2533.8,2.0785673]
[1646706254294,0.00504794,2534.0,2533.8,2.0785673]
[1646706254554,0.00504794,2534.0,2533.8,0.98704]
[1646706254555,0.5063401,2533.9,2533.8,0.98704]
[1646706254747,0.00504794,2534.0,2533.8,7.26140956]
[1646706254944,0.00504794,2534.0,2533.9,4.98739956]
[1646706255147,0.02018887,2534.4,2533.9,4.98739956]
[1646706255346,0.50417828,2534.3,2534.1,0.3962]
[1646706255546,0.72348071,2534.9,2534.7,1.13958674]
[1646706255852,0.72348071,2534.9,2534.3,3.8962]
[1646706256048,1.22761185,2534.9,2534.4,1.09304262]
[1646706256255,0.50413114,2534.8,2534.3,0.6962]
[1646706256449,0.50413114,2534.7,2534.5,0.98674]
[1646706256651,0.72348071,2535.0,2534.5,0.98674]
[1646706256850,0.00472324,2534.7,2534.5,1.28674]
[1646706257049,0.50413114,2534.6,2534.5,1.28674]
[1646706257250,0.50413114,2534.6,2534.5,2.16505416]
[1646706257850,0.50413114,2534.6,2534.5,4.30308523]
[1646706258688,0.50413114,2534.6,2534.5,0.80308523]
[1646706259090,0.50413114,2534.6,2534.5,1.78982523]
[1646706259491,0.50413114,2534.6,2534.5,2.77653523]
[1646706260190,0.50413114,2534.6,2534.5,3.07653523]
[1646706260391,0.50413114,2534.6,2534.5,2.08982523]
[1646706260794,0.50413114,2534.6,2534.5,2.24779823]
[1646706261000,0.50413114,2534.6,2534.5,1.444713]
[1646706261198,0.50413114,2534.6,2534.4,1.97354]
[1646706261395,0.50413114,2534.5,2534.1,0.1971]
[1646706261602,0.0047555,2534.7,2534.0,1.97385]
[1646706261603,0.50413114,2534.4,2534.0,1.97385]
[1646706261797,0.50413114,2534.3,2534.0,2.27385]
[1646706262059,0.50413114,2534.2,2534.0,3.17437568]
[1646706262247,1.11452902,2534.7,2534.0,3.17437568]
[1646706262446,0.47786481,2534.6,2534.0,3.17437568]
[1646706262647,0.00475434,2534.3,2534.0,3.17437568]
[1646706262847,0.47786481,2534.2,2534.0,3.17437568]
[1646706263747,1.10977352,2534.7,2534.0,2.27385]
[1646706263948,0.00475295,2534.2,2534.0,2.27385]
[1646706264150,0.4778408,2534.1,2534.0,2.27385]
[1646706265150,0.4778408,2534.1,2534.0,1.97385]
[1646706265357,0.4778408,2534.1,2533.9,0.1973]
[1646706265552,0.4778408,2534.1,2533.8,1.974]
[1646706265785,0.4778408,2534.1,2533.7,2.7762]
[1646706266295,0.4778408,2534.0,2533.6,2.14902334]
[1646706266691,0.4778408,2534.0,2533.6,2.44902334]
[1646706267590,0.4778408,2533.9,2533.6,2.44902334]
[1646706267991,0.4778408,2533.9,2533.6,2.44254234]
[1646706268391,0.4778408,2533.9,2533.7,1.10557249]
[1646706268593,0.92264231,2534.2,2533.7,1.10557249]
[1646706268594,0.00475331,2534.0,2533.7,1.10557249]
[1646706268790,0.00475331,2534.0,2533.6,0.1973]
[1646706268994,0.00475331,2534.0,2533.5,1.28724]
[1646706269391,0.00475331,2534.0,2533.5,0.98724]
[1646706269640,0.92264231,2534.2,2533.5,1.28724]
[1646706269842,0.00475332,2534.0,2533.5,1.28724]
[1646706270045,0.00475332,2534.0,2533.5,0.98724]
[1646706270243,0.00475332,2534.0,2533.5,1.28724]
[1646706270646,0.87184469,2533.8,2533.2,1.97446]
[1646706270848,1.17184469,2533.8,2533.0,2.8157]
[1646706271048,1.17184469,2533.8,2533.0,0.00475522]
[1646706271251,0.87184469,2533.8,2533.0,1.97936522]
[1646706271747,0.0047533,2534.0,2533.2,0.98716]
[1646706271946,0.0047533,2534.0,2533.3,3.5]
[1646706272147,2.93698071,2534.4,2533.3,3.5]
[1646706272148,1.93698071,2534.4,2533.3,3.8962]
[1646706272349,0.02376452,2534.0,2533.4,1.97426]
[1646706272946,0.02376452,2534.0,2533.3,1.15991913]
[1646706272947,0.8689981,2533.9,2533.3,1.15991913]
[1646706273397,0.8689981,2533.9,2533.1,0.3]
[1646706273597,0.8689981,2533.9,2533.0,4.13880515]
[1646706274002,0.8689981,2533.9,2533.0,2.96620515]
[1646706274206,0.8689981,2533.9,2533.0,0.00475515]
[1646706274207,1.89247881,2533.9,2533.0,0.00475515]
[1646706274404,1.59247881,2533.9,2532.8,0.9873607]
[1646706274705,0.8689981,2533.9,2533.0,1.09002951]
[1646706275605,0.8689981,2533.9,2533.0,1.08527463]
[1646706275806,0.8689981,2533.9,2533.0,1.09002951]
[1646706276007,0.8689981,2533.9,2533.0,2.07730951]
[1646706276206,0.8689981,2533.9,2533.1,1.97458]
[1646706276607,1.19915452,2533.5,2533.1,1.97458]
[1646706276810,1.19915452,2533.5,2532.9,0.158044]
[1646706277053,1.19915452,2533.5,2533.0,0.00475496]
[1646706278047,1.19915452,2533.5,2532.9,0.98748]
[1646706278246,1.19915452,2533.5,2533.0,0.00475467]
[1646706279248,1.72348071,2533.9,2533.0,0.98742]
[1646706279451,2.15396379,2534.0,2533.0,4.49217467]
[1646706279648,1.45396379,2534.0,2533.0,4.49217467]
[1646706280047,1.45396379,2534.0,2533.1,3.5]
[1646706280247,1.45396379,2534.0,2533.3,0.98718]
[1646706280448,1.45396379,2534.0,2533.2,0.98718]
[1646706280449,1.00871932,2533.8,2533.1,6.59508973]
[1646706280648,1.00871932,2533.8,2533.1,3.39508973]
[1646706280893,1.00871932,2533.8,2533.1,3.09508973]
[1646706281093,0.02376517,2534.0,2533.3,0.3962]
[1646706281314,0.02376517,2534.0,2533.4,4.48723]
[1646706281495,0.02376517,2534.0,2533.4,4.78723]
[1646706281695,3.0,2534.1,2533.4,4.78723]
[1646706282100,0.00475323,2534.0,2533.4,0.98723]
[1646706282298,0.00475323,2534.0,2533.6,1.21907022]
[1646706282497,0.00475323,2534.0,2533.6,2.20630022]
[1646706282896,0.86750881,2534.2,2533.6,2.50630022]
[1646706283101,0.00475341,2534.0,2533.6,2.50630022]
[1646706283798,0.00475341,2534.0,2533.6,6.00630022]
[1646706283999,3.97358071,2534.5,2533.6,6.00630022]
[1646706284199,3.97358071,2534.5,2533.6,2.50630022]
[1646706284399,0.00475338,2534.0,2533.6,2.50630022]
[1646706285047,0.00475338,2534.0,2533.6,3.49343022]
[1646706285249,1.73114941,2534.4,2533.6,2.20630022]
[1646706285448,0.00475336,2534.0,2533.4,3.5]
[1646706285647,1.36788059,2533.5,2533.3,1.2281]
[1646706286049,1.36788059,2533.5,2533.2,1.9746]
[1646706286648,1.36788059,2533.5,2533.3,1.05522385]
[1646706287548,1.36788059,2533.5,2533.3,2.04248385]
[1646706287950,1.36788059,2533.5,2533.3,2.34248385]
[1646706289406,0.49643634,2533.4,2533.3,2.34248385]
[1646706289605,0.49643634,2533.4,2533.3,3.43508882]
[1646706289810,0.49643634,2533.4,2533.3,2.07986497]
[1646706290109,0.49643634,2533.4,2533.0,0.99225565]
[1646706290110,0.00115919,2533.3,2533.0,0.99225565]
[1646706290307,0.00115919,2533.3,2533.0,0.99225559]
[1646706290906,0.00115919,2533.3,2533.0,1.96265241]
[1646706291308,0.00115919,2533.3,2533.1,1.09183191]
[1646706295067,0.00012171,2533.3,2533.1,1.09183191]
[1646706296801,0.00012171,2533.3,2533.0,0.99225464]
[1646706297200,0.00012171,2533.3,2533.0,0.9875]
[1646706297404,0.00012171,2533.3,2533.1,1.09194438]
[1646706298001,0.00012171,2533.3,2533.0,0.30475464]
[1646706298202,0.00012171,2533.3,2533.0,0.00475464]
[1646706298400,0.00012171,2533.3,2532.9,2.27493]
[1646706298602,0.00012171,2533.3,2533.0,1.09192947]
[1646706298800,0.00012171,2533.3,2533.0,1.09668411]
[1646706299003,0.00012171,2533.3,2533.1,1.09192947]
[1646706299201,0.00012171,2533.3,2533.0,0.30475464]
[1646706299651,0.00012171,2533.3,2533.0,0.3]
[1646706299850,0.00012171,2533.3,2533.0,0.16280963]
[1646706300457,0.00012171,2533.3,2533.0,1.15026963]
[1646706300855,0.00012171,2533.3,2533.0,1.145515]
[1646706301155,0.00012171,2533.3,2533.0,0.99221457]
[1646706301554,0.00012171,2533.3,2533.0,0.00475457]
[1646706301756,0.93152198,2533.2,2533.0,0.00475457]
[1646706301955,0.49661145,2533.1,2532.6,1.97503]
[1646706302158,0.49661145,2533.1,2532.7,1.09237396]
[1646706302357,0.49661145,2533.1,2533.0,0.00475457]
[1646706302954,0.79661145,2533.1,2533.0,0.00475457]
[1646706303156,1.28761145,2533.1,2533.0,0.00475457]
[1646706303399,1.97578,2532.9,2531.9,0.90424905]
[1646706303599,0.49661145,2532.8,2532.0,1.08612089]
[1646706304399,1.48450145,2532.8,2532.0,1.08612089]
[1646706304697,0.49661145,2532.7,2532.0,1.08612089]
[1646706304900,0.49661145,2532.8,2532.3,0.00475502]
[1646706305102,1.1415638,2532.6,2532.3,0.00475502]
[1646706305298,0.49661145,2532.5,2532.3,0.00475502]
[1646706305704,0.49661145,2532.5,2531.9,1.11433821]
[1646706305900,0.49661145,2532.5,2532.0,1.0861047]
[1646706306102,0.49661145,2532.5,2532.3,0.00475498]
[1646706306300,0.49661145,2532.5,2532.3,0.00176686]
[1646706306900,0.3,2532.9,2532.1,1.97546]
[1646706307170,0.50224766,2532.8,2532.1,1.97546]
[1646706307371,0.50224766,2532.8,2532.1,2.27546]
[1646706307372,0.50224766,2532.7,2532.1,2.27546]
[1646706308373,0.50224766,2532.7,2532.1,0.3]
[1646706308573,0.50224766,2532.7,2531.4,7.70779997]
[1646706308575,0.50224766,2532.7,2531.4,0.13819997]
[1646706308576,0.8859955,2532.4,2531.4,0.13819997]
[1646706308774,0.98811,2532.1,2531.5,1.08630124]
[1646706308972,0.5025444,2532.0,2531.5,1.08630124]
[1646706309174,0.988201,2532.1,2531.5,1.08630124]
[1646706309586,0.98268192,2531.8,2531.5,1.08630124]
[1646706309775,0.98268192,2531.8,2531.2,1.04133862]
[1646706309975,0.98268192,2531.8,2531.3,1.06692759]
[1646706310577,0.98268192,2531.8,2531.3,2.05505759]
[1646706310809,0.98268192,2531.8,2531.4,1.07225654]
[1646706311002,2.97638,2532.2,2531.5,1.06692759]
[1646706311202,0.52045795,2532.1,2531.5,1.06692759]
[1646706311408,1.50858795,2532.1,2531.5,1.06692759]
[1646706311604,0.52045795,2532.0,2531.4,0.00532895]
[1646706311802,1.97652,2532.0,2531.0,1.97622]
[1646706312214,0.9882715,2531.9,2531.7,0.00532875]
[1646706312406,1.11970279,2531.8,2531.7,0.00532875]
[1646706312603,1.61070279,2531.8,2531.7,0.00532875]
[1646706313206,1.61070279,2531.8,2530.5,3.5]
[1646706313405,1.61070279,2531.8,2530.3,3.9636]
[1646706313406,0.9884848,2531.5,2530.3,3.9636]
[1646706313608,0.98853,2531.2,2530.3,3.9636]
[1646706313904,1.14176625,2531.0,2530.2,5.3322]
[1646706314105,1.14176625,2531.0,2530.2,1.8322]
[1646706314305,1.14176625,2531.0,2530.0,5.47708]
[1646706314552,1.9772804,2530.9,2529.6,1.70430928]
[1646706314850,1.07558707,2530.5,2529.9,0.90652809]
[1646706315250,1.37558707,2530.5,2529.7,1.97721]
[1646706315653,1.37558707,2530.5,2530.1,0.00532752]
[1646706316355,2.36431707,2530.5,2529.7,1.95385082]
[1646706316561,2.36431707,2530.5,2529.7,1.93253752]
[1646706316759,1.37558707,2530.5,2529.6,0.91139554]
[1646706316958,1.37558707,2530.5,2530.2,0.00532744]
[1646706317358,0.491,2530.4,2530.2,0.00532744]
[1646706317558,0.491,2530.4,2530.2,2.744e-05]
[1646706317559,0.98881,2530.3,2530.2,2.744e-05]
[1646706317760,0.98914,2530.0,2529.0,0.395]
[1646706317960,0.9892093,2529.6,2528.5,0.71565928]
[1646706318166,1.23422228,2529.3,2528.7,1.18742929]
[1646706318405,0.9892093,2529.6,2528.7,1.18742929]
[1646706318615,0.3,2529.5,2528.7,1.18742929]
[1646706319210,1.28914,2529.6,2528.7,2.17657929]
[1646706319411,2.48708222,2529.6,2528.7,2.17657929]
[1646706319612,15.4355,2530.1,2529.1,0.89561353]
[1646706319613,2.3464,2530.1,2529.1,0.89561353]
[1646706319811,1.1799,2530.3,2529.2,5.47767]
[1646706319812,0.1817,2530.0,2529.2,5.47767]
[1646706320010,0.1817,2530.0,2529.2,1.97767]
[1646706320511,0.88365052,2529.9,2529.5,0.0053254]
[1646706321311,0.88365052,2529.9,2529.3,0.98884]
[1646706321514,1.17063,2530.0,2529.3,0.98884]
[1646706321515,0.1817,2530.0,2529.3,0.98884]
[1646706321711,0.1817,2530.0,2529.6,0.00532532]
[1646706322553,1.26401404,2530.0,2529.3,0.98884]
[1646706322752,1.56401404,2530.0,2529.3,0.98884]
[1646706322950,1.56401404,2530.0,2529.7,0.00532524]
[1646706323355,0.1317,2530.0,2529.7,0.00532524]
[1646706323752,0.1317,2530.0,2529.6,0.3962]
[1646706324152,0.1317,2530.0,2529.5,0.97481677]
[1646706324153,0.1317,2530.0,2529.7,0.0053252]
[1646706324552,0.1317,2530.0,2529.7,0.9940852]
[1646706324753,0.1317,2530.0,2529.7,2.2828052]
[1646706325053,0.1317,2530.0,2529.7,2.27748]
[1646706325253,0.1317,2530.0,2529.7,2.28270535]
[1646706325655,0.1317,2530.0,2529.9,0.93158035]
[1646706326299,1.08606987,2530.5,2530.4,0.03622465]
[1646706326700,1.38606987,2530.5,2530.4,0.03622465]
[1646706326900,1.97731,2531.0,2530.4,0.03622465]
[1646706326901,1.38358,2531.1,2530.4,0.03622465]
[1646706327107,3.4989,2531.2,2530.4,0.03622465]
[1646706327301,3.4989,2531.2,2530.4,2.01302465]
[1646706327501,0.18787273,2531.6,2530.4,2.01302465]
[1646706327703,0.59548364,2531.8,2530.4,2.01302465]
[1646706328103,0.98844,2531.3,2530.4,3.98970465]
[1646706328303,1.18077817,2531.1,2530.5,1.19361587]
[1646706330444,1.28844,2531.3,2530.5,1.19361587]
[1646706331054,1.28844,2531.3,2530.5,2.18206587]
[1646706331455,2.32784813,2531.3,2530.5,2.18206587]
[1646706332251,0.98851,2531.1,2530.4,0.03622465]
[1646706332653,1.47897141,2531.1,2530.4,0.03622465]
[1646706332951,0.49046141,2531.1,2530.4,0.03622465]
[1646706333152,0.19046141,2531.1,2530.4,0.03622465]
[1646706333607,0.49046141,2531.1,2530.4,0.03622465]
[1646706333804,0.872987,2530.7,2530.4,0.03622465]
[1646706334205,2.161657,2530.7,2530.4,0.03622465]
[1646706336712,2.161657,2530.7,2530.4,0.03405765]
[1646706340160,2.652657,2530.7,2530.4,0.03405765]
[1646706340360,3.652657,2530.7,2530.4,0.03405765]
[1646706341904,1.3,2530.7,2530.4,0.03405765]
[1646706342303,0.3,2530.7,2530.4,0.03405765]
[1646706342507,0.98861,2530.9,2530.4,0.03405765]
[1646706342508,1.28861,2530.9,2530.4,0.03405765]
[1646706343505,0.94985258,2530.6,2530.4,0.03405765]
[1646706343706,1.24985258,2530.6,2530.4,0.03405765]
[1646706346170,0.3,2530.6,2530.4,0.03405765]
[1646706346473,1.28867,2530.8,2530.4,0.03405765]
[1646706347070,2.2774036,2530.8,2530.4,0.03405765]
[1646706348072,0.98873,2530.6,2530.4,0.03405765]
[1646706348304,1.2062426,2530.5,2530.4,0.03405765]
[1646706350607,2.08774691,2530.5,2530.4,0.03405765]
[1646706353356,0.58150431,2530.5,2530.4,0.03405765]
[1646706353555,1.0,2530.9,2530.4,1.04490254]
[1646706353756,0.58265487,2530.8,2530.4,0.87155765]
[1646706354358,0.58265487,2530.8,2530.5,1.01277839]
[1646706355558,0.58265487,2530.7,2530.5,1.01277839]
[1646706355810,1.7088357,2531.4,2530.5,1.01277839]
[1646706356005,0.58369244,2531.3,2530.5,1.01277839]
[1646706356204,1.30407814,2531.3,2530.5,0.99946539]
[1646706356809,1.19847289,2531.1,2530.5,0.99946539]
[1646706358005,1.91885859,2531.1,2530.5,0.99946539]
[1646706358407,0.93409029,2530.7,2530.5,0.99946539]
[1646706360552,1.23409029,2530.7,2530.4,0.03405765]
[1646706360753,1.23409029,2530.7,2530.4,0.02756065]
[1646706361559,1.95447599,2530.7,2530.4,0.02756065]
[1646706361756,1.23409029,2530.7,2530.4,0.02756065]
[1646706361960,6.44317599,2530.7,2530.4,0.02756065]
[1646706362161,0.7203857,2530.6,2530.4,0.02756065]
[1646706362357,1.2113857,2530.6,2530.4,0.02756065]
[1646706362758,0.7203857,2530.5,2530.4,0.02756065]
[1646706363155,0.3,2530.5,2530.4,0.02756065]
[1646706363415,1.0203857,2530.5,2530.4,0.02756065]
[1646706363617,0.7203857,2530.5,2530.4,0.02756065]
[1646706365017,1.93409029,2530.7,2530.4,0.02756065]
[1646706365215,0.3,2530.7,2530.4,0.02756065]
[1646706365416,1.1954,2531.1,2530.4,0.02756065]
[1646706365417,0.7203857,2530.9,2530.4,0.02756065]
[1646706365618,0.7203857,2531.0,2530.4,0.02756065]
[1646706366218,3.24618482,2531.2,2530.4,0.02756065]
[1646706366219,0.7203857,2530.9,2530.4,0.02756065]
[1646706366620,0.7203857,2531.0,2530.4,0.02756065]
[1646706366818,1.0203857,2531.0,2530.4,0.02756065]
[1646706367052,0.9010325,2530.8,2530.4,0.02756065]
[1646706368149,1.0203857,2531.0,2530.4,0.02756065]
[1646706368351,0.3,2531.0,2530.4,0.02756065]
[1646706368552,0.7203857,2531.1,2530.4,0.02756065]
[1646706369557,0.7203857,2531.1,2530.6,1.15637039]
[1646706369755,0.7203857,2531.1,2530.7,3.5]
[1646706369953,3.00232175,2531.2,2530.6,1.15637039]
[1646706370153,2.00232175,2531.2,2530.6,1.15637039]
[1646706370453,3.00232175,2531.2,2530.6,1.15637039]
[1646706370653,2.00232175,2531.2,2530.6,1.15637039]
[1646706370906,3.00232175,2531.2,2530.6,1.15637039]
[1646706371107,0.7203857,2531.1,2530.4,0.02756065]
[1646706371303,1.28193605,2531.2,2530.4,0.02756065]
[1646706371304,0.7203857,2531.0,2530.4,0.02756065]
[1646706371506,0.7203857,2530.9,2530.4,0.02756065]
[1646706371705,0.7203857,2531.0,2530.4,0.02756065]
[1646706372504,1.7203857,2531.2,2530.6,1.03817196]
[1646706372712,0.7203857,2531.3,2530.7,3.5]
[1646706372906,0.7203857,2531.3,2530.6,1.03817196]
[1646706373305,0.7203857,2531.4,2530.8,0.3962]
[1646706373610,0.7203857,2531.6,2531.2,0.95562875]
[1646706373810,0.7203857,2531.6,2531.2,0.24777724]
[1646706374407,3.0,2531.7,2531.3,1.3841687]
[1646706374662,3.0,2531.7,2531.4,3.5]
[1646706375056,0.72529216,2532.0,2531.4,3.8]
[1646706375257,0.00490646,2532.0,2531.4,4.1962]
[1646706375462,0.00490646,2532.0,2531.5,0.3962]
[1646706375658,1.92836543,2532.9,2531.7,0.3962]
[1646706375659,0.7203857,2532.5,2531.7,0.3962]
[1646706375860,0.7203857,2532.8,2531.9,0.3962]
[1646706376062,0.7203857,2532.9,2532.0,3.8962]
[1646706376362,0.7203857,2532.9,2532.5,1.16521972]
[1646706376560,0.7203857,2532.9,2532.5,2.15275972]
[1646706376762,0.58041097,2532.8,2532.0,0.3]
[1646706376962,0.7203857,2532.8,2532.1,1.01488752]
[1646706377265,0.00310945,2532.6,2531.9,4.3903]
[1646706377464,0.58352042,2532.6,2531.9,2.927]
[1646706377663,0.58352042,2532.6,2531.8,1.01024322]
[1646706377664,1.06709109,2532.3,2531.8,1.01024322]
[1646706377864,0.58041097,2532.2,2531.8,1.01024322]
[1646706378063,0.58041097,2532.2,2531.5,1.1633]
[1646706378313,0.58041097,2532.2,2531.6,1.01277342]
[1646706378502,0.58041097,2532.2,2531.3,4.385093]
[1646706378702,0.58041097,2532.2,2531.4,1.01287174]
[1646706379502,0.00533189,2532.0,2531.5,1.22208514]
[1646706379906,0.57855051,2531.9,2531.3,3.085093]
[1646706380104,0.57855051,2531.9,2531.4,1.20951579]
[1646706380307,0.57855051,2531.9,2531.4,0.1975]
[1646706380513,0.57855051,2531.9,2531.3,0.158093]
[1646706380709,0.57855051,2531.8,2531.3,0.158093]
[1646706380909,1.15370363,2531.9,2531.3,1.18354531]
[1646706381208,0.57860248,2531.8,2531.3,1.18354531]
[1646706382964,0.57860248,2531.8,2531.3,0.158093]
[1646706383163,4.07860248,2531.8,2531.3,0.158093]
[1646706383364,0.57860248,2531.7,2531.3,0.158093]
[1646706383765,0.00533157,2532.0,2531.3,0.158093]
[1646706383966,0.57838032,2531.9,2531.3,0.158093]
[1646706384167,4.0067857,2532.3,2531.3,0.158093]
[1646706384168,0.57838032,2531.8,2531.3,0.158093]
[1646706384366,0.00515556,2532.0,2530.9,0.13819997]
[1646706384566,0.89101097,2531.8,2531.2,0.99234706]
[1646706384970,0.89101097,2531.8,2530.9,0.13819997]
[1646706385170,0.59504878,2531.7,2530.9,0.13819997]
[1646706386007,0.87168955,2531.2,2530.9,0.13819997]
[1646706387509,0.87168955,2531.2,2530.7,0.1975]
[1646706387713,0.87168955,2531.2,2530.5,0.1975]
[1646706387909,0.87168955,2531.2,2530.6,0.9966377]
[1646706388508,6.0113857,2531.8,2530.7,1.06620096]
[1646706388509,5.291,2531.8,2530.7,1.06620096]
[1646706388807,5.291,2531.8,2530.8,0.9966377]
[1646706388808,0.59530832,2531.7,2530.8,0.9966377]
[1646706389410,0.59530832,2531.7,2530.8,2.9729413]
[1646706389651,0.90135931,2531.4,2530.9,0.9966377]
[1646706389854,0.90135931,2531.4,2530.9,1.9847677]
[1646706390053,0.90135931,2531.4,2531.0,0.9966377]
[1646706391258,0.59532988,2531.3,2530.6,0.1975]
[1646706391460,0.59532988,2531.3,2530.7,0.99691695]
[1646706391657,0.59532988,2531.3,2530.5,3.10932]
[1646706391859,3.50505387,2532.0,2530.6,4.69442104]
[1646706391860,0.00505387,2532.0,2530.6,4.69442104]
[1646706392157,0.59531194,2531.9,2531.1,0.98794]
[1646706392357,0.59531194,2531.9,2531.3,0.98796]
[1646706392559,0.59531194,2531.9,2531.2,0.99692104]
[1646706392560,0.59531194,2531.9,2530.9,3.6975]
[1646706392761,1.20097906,2531.5,2531.0,0.99626774]
[1646706394415,0.59554277,2531.4,2530.9,4.94658863]
[1646706394614,0.59554277,2531.4,2530.9,4.64658863]
[1646706394814,0.59554277,2531.4,2531.0,0.99655307]
[1646706396419,1.20097906,2531.5,2531.0,0.99655307]
[1646706396621,0.59570947,2531.4,2531.0,0.99655307]
[1646706397059,0.59570947,2531.4,2530.9,4.64658863]
[1646706397262,0.59570947,2531.4,2530.9,1.44658863]
[1646706397461,0.59570947,2531.4,2531.0,0.99706913]
[1646706397660,0.59570947,2531.4,2530.9,1.14658863]
[1646706397859,0.59570947,2531.4,2531.0,0.99691829]